fUSD/lending_fUSD_20251113
["ID","MTS","AMOUNT","RATE_DAILY","PERIOD"]
[393807573,1763016631844,-165.12203588,0.000179,2]
[393807574,1763016631855,-3371.0,0.00017906,2]
[393807575,1763016631865,-2709.0,0.00017971,2]
[393807576,1763016631875,-500.0,0.00017973,2]
[393807577,1763016631885,-353.716,0.00017973,2]
[393807578,1763016631895,-942.54615053,0.00017993,2]
[393807579,1763016631907,-278.96348675,0.00017993,2]
[393807580,1763016631918,-1321.88137828,0.00017993,2]
[393807581,1763016631930,-2640.82527876,0.00017993,2]
[393807582,1763016631943,-1317.37814711,0.00017993,2]
[393807583,1763016631975,-1562.85869457,0.00017993,2]
[393807584,1763016632053,-473.32,0.00017993,2]
[393807591,1763016637383,-2107.05010355,0.00017993,2]
[393807592,1763016637463,-15888.53384164,0.00017993,2]
[393807593,1763016637473,-397.81642101,0.00017999,2]
[393807594,1763016637483,-500.0,0.00017999,2]
[393807595,1763016637493,-500.0,0.00017999,2]
[393807596,1763016637505,-500.0,0.00017999,2]
[393807597,1763016637514,-500.0,0.00017999,2]
[393807598,1763016637523,-500.0,0.00017999,2]
[393807599,1763016637533,-201.58518184,0.00017999,2]
[393807600,1763016637542,-500.0,0.00017999,2]
[393807601,1763016637551,-454.3147724,0.00017999,2]
[393807602,1763016637564,-45.6852276,0.00017999,2]
[393807603,1763016637573,-583.0112083,0.00017999,2]
[393807604,1763016637583,-213.29300196,0.00017999,2]
[393807605,1763016637593,-618.94371933,0.00017999,2]
[393807606,1763016637603,-155.15732369,0.00017999,2]
[393807607,1763016637632,-344.84267631,0.00017999,2]
[393807608,1763016637642,-500.0,0.00017999,2]
[393807609,1763016637652,-164.54481816,0.00017999,2]
[393807610,1763016637662,-500.0,0.00017999,2]
[393807611,1763016637672,-505.92995547,0.00017999,2]
[393807612,1763016637681,-300.0,0.00017999,2]
[393807613,1763016637692,-428.49819924,0.00017999,2]
[393807614,1763016637701,-500.0,0.00017999,2]
[393807615,1763016637714,-151.10585053,0.00017999,2]
[393807616,1763016637725,-150.0,0.00017999,2]
[393807621,1763016637896,-500.0,0.00017999,2]
[393807622,1763016637906,-500.0,0.00017999,2]
[393807623,1763016637915,-500.0,0.00017999,2]
[393807624,1763016637926,-500.0,0.00017999,2]
[393807625,1763016637935,-500.0,0.00017999,2]
[393807626,1763016637945,-351.40898874,0.00017999,2]
[393807627,1763016637954,-500.0,0.00017999,2]
[393807628,1763016637964,-500.0,0.00017999,2]
[393807629,1763016637974,-500.0,0.00017999,2]
[393807630,1763016637983,-500.0,0.00017999,2]
[393807631,1763016637993,-500.0,0.00017999,2]
[393807632,1763016638003,-500.0,0.00017999,2]
[393807633,1763016638014,-200.0,0.00017999,2]
[393807634,1763016638023,-12597.62102907,0.00018,2]
[393807635,1763016638035,-1294.22726958,0.00018,2]
[393807714,1763016641520,-7755.5804281,0.00018,2]
[393807725,1763016642615,-500.0,0.00017999,2]
[393807726,1763016642625,-5543.84696128,0.00018,2]
[393807727,1763016642771,-5483.03118195,0.00018,2]
[393807759,1763016651716,-9294275.78524048,0.00018,2]
[393807760,1763016651730,-449680.54191225,0.00018,2]
[393807761,1763016651740,-155.57268512,0.00018,2]
[393807762,1763016651751,-500.0,0.00018,2]
[393807763,1763016651760,-500.0,0.00018,2]
[393807764,1763016651771,-158.96480737,0.00018,2]
[393807765,1763016651780,-150.0,0.00018,2]
[393807766,1763016651789,-500.0,0.00018,2]
[393807767,1763016651800,-150.0,0.00018,2]
[393807768,1763016651810,-500.0,0.00018,2]
[393807769,1763016651819,-500.0,0.00018,2]
[393807770,1763016651828,-500.0,0.00018,2]
[393807771,1763016651838,-150.0,0.00018,2]
[393807772,1763016651847,-500.0,0.00018,2]
[393807773,1763016651865,-150.0,0.00018,2]
[393807774,1763016651875,-150.0,0.00018,2]
[393807775,1763016651884,-150.0,0.00018,2]
[393807776,1763016651894,-500.0,0.00018,2]
[393807777,1763016651903,-150.0,0.00018,2]
[393807778,1763016651912,-258.45790101,0.00018,2]
[393807779,1763016651922,-500.0,0.00018,2]
[393807780,1763016651931,-150.0,0.00018,2]
[393807781,1763016651940,-2709.0,0.00018003,2]
[393807782,1763016651950,-150.0,0.00018022,2]
[393807783,1763016651960,-150.0,0.00018026,2]
[393807784,1763016651970,-500.0,0.00018026,2]
[393807785,1763016651979,-500.0,0.00018026,2]
[393807786,1763016651989,-500.0,0.00018027,2]
[393807787,1763016651998,-500.0,0.00018027,2]
[393807788,1763016652007,-150.0,0.00018027,2]
[393807789,1763016652019,-500.0,0.00018027,2]
[393807790,1763016652029,-155.63392892,0.00018027,2]
[393807791,1763016652039,-500.0,0.00018027,2]
[393807792,1763016652049,-500.0,0.00018027,2]
[393807793,1763016652059,-500.0,0.00018027,2]
[393807794,1763016652068,-150.0,0.00018027,2]
[393807795,1763016652078,-500.0,0.00018027,2]
[393807796,1763016652087,-160.98736975,0.00018027,2]
[393807797,1763016652097,-150.0,0.00018027,2]
[393807798,1763016652106,-500.0,0.00018027,2]
[393807799,1763016652116,-500.0,0.00018027,2]
[393807800,1763016652125,-150.0,0.00018027,2]
[393807801,1763016652135,-150.0,0.00018054,2]
[393807802,1763016652145,-500.0,0.00018054,2]
[393807803,1763016652154,-264.0,0.00018054,2]
[393807804,1763016652164,-500.0,0.00018055,2]
[393807805,1763016652174,-500.0,0.00018055,2]
[393807806,1763016652183,-150.0,0.00018055,2]
[393807807,1763016652194,-272.00079718,0.00018055,2]
[393807808,1763016652205,-500.0,0.00018055,2]
[393807809,1763016652214,-294.12430704,0.00018055,2]
[393807810,1763016652224,-500.0,0.00018055,2]
[393807811,1763016652234,-150.0,0.00018055,2]
[393807812,1763016652244,-500.0,0.00018055,2]
[393807813,1763016652254,-150.0,0.00018055,2]
[393807814,1763016652265,-500.0,0.00018055,2]
[393807815,1763016652275,-500.0,0.00018055,2]
[393807816,1763016652284,-204.43135743,0.00018055,2]
[393807817,1763016652294,-620.0,0.00018068,2]
[393807818,1763016652303,-620.0,0.0001807,2]
[393807819,1763016652313,-280.57353987,0.00018081,2]
[393807820,1763016652322,-500.0,0.00018081,2]
[393807821,1763016652332,-500.0,0.00018082,2]
[393807822,1763016652341,-500.0,0.00018082,2]
[393807823,1763016652351,-223.57597495,0.00018082,2]
[393807824,1763016652361,-168.34038152,0.00018082,2]
[393807825,1763016652371,-500.0,0.00018082,2]
[393807826,1763016652380,-150.0,0.00018082,2]
[393807827,1763016652390,-350.0,0.00018082,2]
[393807828,1763016652399,-388.0,0.00018082,2]
[393807829,1763016652409,-1764.13159148,0.000181,2]
[393807830,1763016652418,-222.0,0.000181,2]
[393807831,1763016652428,-405.03131093,0.00018109,2]
[393807832,1763016652438,-500.0,0.0001811,2]
[393807833,1763016652447,-249.4115802,0.0001811,2]
[393807834,1763016652457,-500.0,0.00018137,2]
[393807835,1763016652467,-166.66,0.00018152,2]
[393807836,1763016652477,-500.0,0.00018164,2]
[393807837,1763016652486,-3371.0,0.00018169,2]
[393807838,1763016652496,-300.0,0.00018179,2]
[393807839,1763016652505,-35867.21,0.0001818,2]
[393807840,1763016652517,-188.0,0.00018182,2]
[393807841,1763016652527,-3458.05,0.00018182,2]
[393807842,1763016652540,-8676.29,0.00018184,2]
[393807843,1763016652550,-500.0,0.00018192,2]
[393807844,1763016652559,-200.0,0.00018209,2]
[393807845,1763016652568,-640.0,0.00018219,2]
[393807846,1763016652578,-500.0,0.00018219,2]
[393807847,1763016652587,-500.0,0.00018247,2]
[393807848,1763016652596,-266.0,0.00018253,2]
[393807849,1763016652606,-154.51,0.00018267,2]
[393807850,1763016652615,-200.0,0.00018273,2]
[393807851,1763016652625,-500.0,0.00018274,2]
[393807852,1763016652635,-366.11,0.00018282,2]
[393807853,1763016652644,-2709.0,0.00018298,2]
[393807854,1763016652654,-500.0,0.00018301,2]
[393807855,1763016652663,-500.0,0.00018329,2]
[393807856,1763016652672,-500.0,0.00018356,2]
[393807857,1763016652682,-500.0,0.00018384,2]
[393807858,1763016652691,-254.45,0.00018404,2]
[393807859,1763016652700,-202.06262284,0.00018404,2]
[393807860,1763016652710,-150.0,0.00018404,2]
[393807861,1763016652724,-150.0,0.00018404,2]
[393807862,1763016652735,-150.0,0.00018404,2]
[393807863,1763016652744,-150.0,0.00018404,2]
[393807864,1763016652754,-267.22218459,0.00018404,2]
[393807865,1763016652766,-500.0,0.00018404,2]
[393807866,1763016652776,-153.62074529,0.00018404,2]
[393807867,1763016652786,-151.37454306,0.00018404,2]
[393807868,1763016652796,-150.0,0.00018404,2]
[393807869,1763016652808,-152.5159152,0.00018404,2]
[393807870,1763016652817,-500.0,0.00018411,2]
[393807871,1763016652827,-5888.0,0.00018416,2]
[393807872,1763016652836,-150.0,0.00018431,2]
[393807873,1763016652846,-150.0,0.00018431,2]
[393807874,1763016652856,-150.0,0.00018431,2]
[393807875,1763016652866,-150.0,0.00018431,2]
[393807876,1763016652876,-500.0,0.00018431,2]
[393807877,1763016652886,-242.40227646,0.00018431,2]
[393807878,1763016652895,-500.0,0.00018438,2]
[393807879,1763016652905,-150.0,0.00018459,2]
[393807880,1763016652916,-150.0,0.00018459,2]
[393807881,1763016652925,-150.0,0.00018459,2]
[393807882,1763016652935,-150.0,0.00018459,2]
[393807883,1763016652944,-500.0,0.00018459,2]
[393807884,1763016652954,-500.0,0.00018466,2]
[393807885,1763016652963,-198.92754469,0.00018486,2]
[393807886,1763016652973,-150.0,0.00018486,2]
[393807887,1763016652983,-212.5471274,0.00018486,2]
[393807888,1763016652993,-150.0,0.00018486,2]
[393807889,1763016653002,-332.31456236,0.00018486,2]
[393807890,1763016653013,-267.86529,0.00018493,2]
[393807891,1763016653022,-404.480002,0.00018493,2]
[393807892,1763016653032,-404.480002,0.00018493,2]
[393807893,1763016653042,-404.480002,0.00018493,2]
[393807894,1763016653052,-404.480002,0.00018493,2]
[393807895,1763016653062,-151.0,0.00018493,2]
[393807896,1763016653072,-158.93583,0.00018493,2]
[393807897,1763016653082,-544.0,0.00018493,2]
[393807898,1763016653092,-166.66,0.00018512,2]
[393807899,1763016653101,-182.87888616,0.00018514,2]
[393807900,1763016653110,-214.4734072,0.00018514,2]
[393807901,1763016653119,-1000.0,0.00018521,2]
[393807902,1763016653129,-224.463566,0.00018536,2]
[393807903,1763016653139,-166.935786,0.00018536,2]
[393807904,1763016653149,-151.0,0.00018536,2]
[393807905,1763016653159,-157.243036,0.00018536,2]
[393807906,1763016653168,-24215.25829811,0.00018536,2]
[393807907,1763016653178,-420.0,0.00018602,2]
[393807908,1763016653188,-420.0,0.00018602,2]
[393807909,1763016653198,-165.12203588,0.00018664,2]
[393807910,1763016653208,-1680.0,0.00018695,2]
[393807911,1763016653218,-2709.0,0.00018723,2]
[393807912,1763016653227,-300.0,0.00018735,2]
[393807913,1763016653238,-195.0,0.00018764,2]
[393807914,1763016653249,-2500.0,0.00018764,2]
[393807915,1763016653259,-193.70507279,0.00018764,2]
[393807916,1763016653270,-3371.0,0.00018781,2]
[393807917,1763016653280,-151.02,0.000188,2]
[393807918,1763016653289,-151.02,0.000188,2]
[393807919,1763016653299,-1005.0,0.00018836,2]
[393807920,1763016653309,-3371.0,0.00018839,2]
[393807921,1763016653318,-5888.0,0.00018869,2]
[393807922,1763016653328,-166.66,0.00018871,2]
[393807923,1763016653338,-166.66,0.00018894,2]
[393807924,1763016653347,-4946.0401473,0.00019,2]
[393807925,1763016653357,-6232.82001747,0.00019,2]
[393807926,1763016653368,-6232.82001747,0.00019,2]
[393807927,1763016653378,-458.48022463,0.00019,2]
[393807928,1763016653388,-151.0,0.00019,2]
[393807929,1763016653398,-151.0,0.00019,2]
[393807930,1763016653407,-354.8046349,0.0001901,7]
[393807931,1763016653417,-3371.0,0.0001902,2]
[393807932,1763016653427,-620.0,0.00019059,2]
[393807933,1763016653437,-1005.0,0.000191,2]
[393807934,1763016653447,-1005.0,0.00019143,2]
[393807935,1763016653456,-152.085378,0.00019178,2]
[393807936,1763016653466,-1924.278282,0.00019178,2]
[393807937,1763016653476,-1924.278282,0.00019178,2]
[393807938,1763016653486,-1924.278282,0.00019178,2]
[393807939,1763016653496,-1924.278282,0.00019178,2]
[393807940,1763016653506,-1005.0,0.00019283,2]
[393807941,1763016653517,-1009.7380546,0.00019297,2]
[393807942,1763016653527,-366.11,0.00019298,2]
[393807943,1763016653536,-620.0,0.00019319,2]
[393807944,1763016653702,-1000.0,0.0001938,2]
[393807945,1763016653713,-1730.43454739,0.000195,7]
[393807946,1763016653725,-166.66,0.00019518,2]
[393807947,1763016653735,-2709.0,0.00019526,2]
[393807948,1763016653744,-300.0,0.00019574,2]
[393807949,1763016653754,-1490.0,0.00019586,2]
[393807950,1763016653767,-225.3030138,0.00019782,2]
[393807951,1763016653776,-363.0,0.00019829,2]
[393807952,1763016653786,-502.7946782,0.00019973,2]
[393807953,1763016653797,-500.0,0.00019973,2]
[393807954,1763016653806,-501.86872129,0.00019973,2]
[393807955,1763016653816,-500.0,0.00019973,2]
[393807956,1763016653826,-500.0,0.00019973,2]
[393807957,1763016653835,-500.0,0.00019973,2]
[393807958,1763016653845,-500.0,0.00019973,2]
[393807959,1763016653854,-352.74427323,0.00019973,2]
[393807960,1763016653863,-500.0,0.00019973,2]
[393807961,1763016653873,-500.0,0.00019973,2]
[393807962,1763016653883,-500.0,0.00019973,2]
[393807963,1763016653892,-300.0,0.00019989,2]
[393807964,1763016653902,-65538.02197142,0.0001999,2]
[393807965,1763016653912,-1924.278282,0.0001999,7]
[393807966,1763016653922,-1924.278282,0.0001999,7]
[393807967,1763016653931,-1924.278282,0.0001999,7]
[393807968,1763016653941,-1924.278282,0.0001999,7]
[393807969,1763016653951,-404.480002,0.0001999,7]
[393807970,1763016653961,-404.480002,0.0001999,7]
[393807971,1763016653971,-404.480002,0.0001999,7]
[393807972,1763016653981,-404.480002,0.0001999,7]
[393807973,1763016653992,-163.424179,0.0001999,7]
[393807974,1763016654003,-300.0,0.00019999,2]
[393807975,1763016654014,-1027.51540983,0.0002,2]
[393807976,1763016654025,-25382.8425487,0.0002,2]
[393807977,1763016654035,-100524.65186634,0.0002,5]
[393807978,1763016654045,-155.330896,0.0002,7]
[393807979,1763016654055,-1924.278282,0.0002,7]
[393807980,1763016654065,-1924.278282,0.0002,7]
[393807981,1763016654075,-1924.278282,0.0002,7]
[393807982,1763016654085,-1924.278282,0.0002,7]
[393807983,1763016654095,-404.480002,0.0002,7]
[393807984,1763016654105,-404.480002,0.0002,7]
[393807985,1763016654116,-404.480002,0.0002,7]
[393807986,1763016654127,-404.480002,0.0002,7]
[393807987,1763016654138,-166.66,0.00020141,2]
[393807988,1763016654148,-349.91,0.00020187,2]
[393807989,1763016654157,-297.28993269,0.00020227,2]
[393807990,1763016654167,-8610.861767,0.00020277,2]
[393807991,1763016654176,-366.11,0.00020314,2]
[393807992,1763016654186,-587.0,0.00020317,2]
[393807993,1763016654196,-587.0,0.00020317,2]
[393807994,1763016654208,-363.0,0.00020463,2]
[393807995,1763016654218,-2351.0,0.00020519,2]
[393807996,1763016654227,-1006.92278561,0.00020521,2]
[393807997,1763016654237,-1000.0,0.00020521,2]
[393807998,1763016654247,-1000.0,0.00020521,2]
[393807999,1763016654258,-506.67445187,0.00020521,2]
[393808000,1763016654269,-503.61158454,0.00020521,2]
[393808001,1763016654279,-1000.0,0.00020521,2]
[393808002,1763016654289,-482.77598454,0.00020521,2]
[393808003,1763016654299,-1000.0,0.00020521,2]
[393808004,1763016654309,-151.0,0.00020548,7]
[393808005,1763016654319,-151.0,0.00020548,7]
[393808006,1763016654329,-250.313723,0.00020548,7]
[393808007,1763016654338,-151.0,0.00020548,7]
[393808008,1763016654348,-151.0,0.00020548,7]
[393808009,1763016654358,-151.0,0.00020548,7]
[393808010,1763016654368,-166.66,0.00020765,2]
[393808011,1763016654378,-1921.342965,0.00020787,2]
[393808012,1763016654388,-500.0,0.0002092,2]
[393808013,1763016654398,-500.0,0.0002092,2]
[393808014,1763016654407,-500.0,0.0002092,2]
[393808015,1763016654417,-300.0,0.00020944,2]
[393808016,1763016654427,-10852.68385532,0.00021,2]
[393808017,1763016654437,-1182.99820202,0.00021,2]
[393808018,1763016654446,-195.27056415,0.00021,2]
[393808019,1763016654457,-500.0,0.00021044,2]
[393808020,1763016654466,-509.34676905,0.00021068,2]
[393808021,1763016654476,-1500.0,0.00021068,2]
[393808022,1763016654485,-1000.0,0.00021068,2]
[393808023,1763016654494,-1500.0,0.00021068,2]
[393808024,1763016654504,-363.0,0.00021235,2]
[393808025,1763016654514,-156.1344306,0.0002125,2]
[393808026,1763016654524,-366.11,0.00021329,2]
[393808027,1763016654534,-166.66,0.00021389,2]
[393808028,1763016654543,-500.0,0.00021468,2]
[393808029,1763016654553,-500.0,0.00021468,2]
[393808030,1763016654563,-500.0,0.00021468,2]
[393808031,1763016654572,-2159.83513634,0.000215,2]
[393808032,1763016654582,-20365.18722524,0.000215,2]
[393808033,1763016654591,-220.20831545,0.000215,2]
[393808034,1763016654601,-1000.0,0.00021534,2]
[393808035,1763016654611,-1000.0,0.00021592,2]
[393808036,1763016654620,-298.05950692,0.00021612,2]
[393808037,1763016654630,-1394.07329233,0.00021616,2]
[393808038,1763016654640,-518.07329088,0.00021616,2]
[393808039,1763016654650,-186.26,0.00021679,2]
[393808040,1763016654660,-500.0,0.00021917,2]
[393808041,1763016654669,-500.0,0.00021917,2]
[393808042,1763016654679,-500.0,0.00021917,2]
[393808043,1763016654689,-500.0,0.00021917,2]
[393808044,1763016654699,-500.0,0.00021917,2]
[393808045,1763016654708,-500.0,0.00021917,2]
[393808046,1763016654718,-500.0,0.00021917,2]
[393808047,1763016654732,-500.0,0.00021917,2]
[393808048,1763016654742,-500.0,0.00021917,2]
[393808049,1763016654751,-500.0,0.00021917,2]
[393808050,1763016654762,-500.0,0.00021917,2]
[393808051,1763016654772,-500.0,0.00021917,2]
[393808052,1763016654782,-500.0,0.00021917,2]
[393808053,1763016654792,-500.0,0.00021917,2]
[393808054,1763016654803,-500.0,0.00021917,2]
[393808055,1763016654813,-500.0,0.00021917,2]
[393808056,1763016654823,-500.0,0.00021917,2]
[393808057,1763016654832,-500.0,0.00021917,2]
[393808058,1763016654841,-500.0,0.00021917,2]
[393808059,1763016654851,-500.0,0.00021917,2]
[393808060,1763016654861,-500.0,0.00021917,2]
[393808061,1763016654870,-587.69802353,0.00021917,2]
[393808062,1763016654882,-5000.0,0.00021918,2]
[393808063,1763016654892,-150.31084984,0.00021973,2]
[393808064,1763016654901,-162.39700313,0.00021973,2]
[393808065,1763016654911,-150.0,0.00021973,2]
[393808066,1763016654920,-677.68637483,0.00021999,2]
[393808067,1763016654929,-300.0,0.00021999,2]
[393808068,1763016654939,-58279.5895206,0.00022,4]
[393808069,1763016654948,-6813.7,0.00022,7]
[393808070,1763016654957,-183.0,0.00022,2]
[393808071,1763016654967,-1924.278282,0.00022,7]
[393808072,1763016654976,-1924.278282,0.00022,7]
[393808073,1763016654986,-1924.278282,0.00022,7]
[393808074,1763016654996,-1924.278282,0.00022,7]
[393808075,1763016655006,-151.0,0.00022,7]
[393808076,1763016655015,-404.480002,0.00022,7]
[393808077,1763016655025,-404.480002,0.00022,7]
[393808078,1763016655034,-404.480002,0.00022,7]
[393808079,1763016655043,-404.480002,0.00022,7]
[393808080,1763016655053,-166.66,0.00022012,2]
[393808081,1763016655063,-1011.52144643,0.0002214,2]
[393808082,1763016655072,-823.0,0.0002219,2]
[393808083,1763016655083,-451.0,0.0002219,2]
[393808084,1763016655092,-183.0,0.00022192,7]
[393808085,1763016655101,-366.11,0.00022345,2]
[393808086,1763016655110,-2900.0,0.000225,15]
[393808087,1763016655120,-35192.1207286,0.000225,2]
[393808088,1763016655129,-183.39180887,0.00022521,2]
[393808089,1763016655139,-3292.0,0.00022522,2]
[393808090,1763016655148,-6074.03,0.00022562,2]
[393808091,1763016655158,-2207.09,0.00022562,2]
[393808092,1763016655168,-10076.24,0.00022562,2]
[393808093,1763016655178,-518.43732855,0.0002271,2]
[393808094,1763016655188,-19219.98002134,0.000229,2]
[393808095,1763016655198,-435.91185601,0.00023,2]
[393808096,1763016655207,-998.5774145,0.00023,2]
[393808097,1763016655218,-183.0,0.00023014,7]
[393808098,1763016655228,-2562.56127671,0.000231,2]
[393808099,1763016655237,-404.480002,0.000231,7]
[393808100,1763016655249,-404.480002,0.000231,7]
[393808101,1763016655260,-404.480002,0.000231,7]
[393808102,1763016655269,-404.480002,0.000231,7]
[393808103,1763016655279,-51705.35315664,0.000232,2]
[393808104,1763016655289,-1924.278282,0.000232,7]
[393808105,1763016655299,-1924.278282,0.000232,7]
[393808106,1763016655309,-1924.278282,0.000232,7]
[393808107,1763016655318,-1924.278272,0.000232,7]
[393808108,1763016655328,-151.0,0.000232,7]
[393808109,1763016655338,-366.11,0.00023361,2]
[393808110,1763016655347,-200.0,0.000235,2]
[393808111,1763016655356,-162.74,0.00023606,4]
[393808112,1763016655366,-1000.0,0.00023687,2]
[393808113,1763016655376,-6813.7,0.000239,7]
[393808114,1763016655385,-1011.55444144,0.00024,2]
[393808115,1763016655395,-1042.06171515,0.00024,14]
[393808116,1763016655406,-3600.0,0.00024,2]
[393808117,1763016655415,-15573.62681979,0.00024,2]
[393808118,1763016655424,-3428.0,0.00024018,2]
[393808119,1763016655435,-1317.0,0.00024018,2]
[393808120,1763016655444,-608.0,0.00024018,2]
[393808121,1763016655454,-575.0,0.00024018,2]
[393808122,1763016655464,-1598.0,0.00024018,2]
[393808123,1763016655475,-821.0,0.00024018,2]
[393808124,1763016655485,-813.0,0.00024018,2]
[393808125,1763016655495,-1275.0,0.00024018,2]
[393808126,1763016655504,-6668.0,0.00024018,2]
[393808127,1763016655514,-150.0,0.00024018,2]
[393808128,1763016655523,-560.0,0.00024018,2]
[393808129,1763016655532,-6484.0,0.00024018,2]
[393808130,1763016655542,-3111.0,0.00024018,2]
[393808131,1763016655551,-186.0,0.00024164,7]
[393808132,1763016655561,-414.19538437,0.0002421,2]
[393808133,1763016655570,-1152.0,0.00024236,2]
[393808134,1763016655579,-186.26,0.00024349,2]
[393808135,1763016655588,-366.11,0.00024376,2]
[393808136,1763016655598,-162.31339977,0.0002455,15]
[393808137,1763016655608,-156.1344306,0.000246,2]
[393808138,1763016655618,-591.92719779,0.0002465,2]
[393808139,1763016655627,-1132.74,0.00024658,30]
[393808140,1763016655636,-1000.0,0.00024658,2]
[393808141,1763016655645,-173.73,0.00024658,2]
[393808142,1763016655655,-4609.0,0.00024721,2]
[393808143,1763016655664,-150.0,0.00024773,2]
[393808144,1763016655674,-319031.856732,0.000248,2]
[393808145,1763016655683,-717.39679626,0.00024881,2]
[393808146,1763016655693,-64006.8303984,0.000249,2]
[393808147,1763016655702,-1113.25,0.00024975,2]
[393808148,1763016655712,-1051.35685065,0.00025,3]
[393808149,1763016655726,-473.81,0.00025041,2]
[393808150,1763016655736,-250.0,0.00025321,2]
[393808151,1763016655745,-298.05950692,0.00025324,2]
[393808152,1763016655755,-366.11,0.00025392,2]
[393808153,1763016655766,-312.29549531,0.00025689,2]
[393808154,1763016655775,-183.0,0.00025775,7]
[393808155,1763016655784,-2000.0,0.000258,2]
[393808156,1763016655794,-478.69779641,0.00025808,2]
[393808157,1763016655806,-1000.0,0.0002584,2]
[393808158,1763016655815,-350.0,0.00025868,2]
[393808159,1763016655826,-6813.7,0.000259,7]
[393808160,1763016655835,-2373.01987496,0.0002591,2]
[393808161,1763016655844,-5888.0,0.00026251,2]
[393808162,1763016655854,-366.11,0.00026408,2]
[393808163,1763016655864,-450.0,0.00026416,2]
[393808164,1763016655874,-1613.0,0.0002647,2]
[393808165,1763016655883,-153.0,0.00026505,2]
[393808166,1763016655892,-153.0,0.00026505,2]
[393808167,1763016655902,-153.0,0.00026505,2]
[393808168,1763016655911,-153.0,0.00026505,2]
[393808169,1763016655920,-153.0,0.00026505,2]
[393808170,1763016655929,-153.0,0.00026505,2]
[393808171,1763016655939,-153.0,0.00026505,2]
[393808172,1763016655948,-153.0,0.00026505,2]
[393808173,1763016655957,-153.0,0.00026505,2]
[393808174,1763016655967,-153.0,0.00026505,2]
[393808175,1763016655977,-153.0,0.00026505,2]
[393808176,1763016655986,-153.0,0.00026509,2]
[393808177,1763016655996,-153.0,0.00026509,2]
[393808178,1763016656005,-153.0,0.00026509,2]
[393808179,1763016656016,-153.0,0.00026536,2]
[393808180,1763016656025,-153.0,0.00026536,2]
[393808181,1763016656035,-153.0,0.00026536,2]
[393808182,1763016656044,-153.0,0.00026536,2]
[393808183,1763016656053,-153.0,0.00026536,2]
[393808184,1763016656062,-153.0,0.00026536,2]
[393808185,1763016656071,-153.0,0.00026536,2]
[393808186,1763016656080,-153.0,0.00026536,2]
[393808187,1763016656090,-153.0,0.00026536,2]
[393808188,1763016656099,-153.0,0.00026536,2]
[393808189,1763016656108,-153.0,0.00026536,2]
[393808190,1763016656118,-153.0,0.00026541,2]
[393808191,1763016656127,-153.0,0.00026541,2]
[393808192,1763016656136,-153.0,0.00026541,2]
[393808193,1763016656145,-153.0,0.00026567,2]
[393808194,1763016656155,-153.0,0.00026567,2]
[393808195,1763016656164,-153.0,0.00026567,2]
[393808196,1763016656173,-153.0,0.00026567,2]
[393808197,1763016656182,-153.0,0.00026567,2]
[393808198,1763016656192,-153.0,0.00026567,2]
[393808199,1763016656201,-153.0,0.00026567,2]
[393808200,1763016656211,-153.0,0.00026567,2]
[393808201,1763016656220,-153.0,0.00026567,2]